Cogmind - Beta 9.3 @@@ ROGUE MODE // 2019.12.21 @ 22:08:43 // Winter2019/RPGLIKE Player: INSYN Result: Self-destructed Performance ------------- Evolutions (1) 500 Regions Visited (4) 800 Robots Destroyed (25) 125 Value Destroyed (602) 602 Prototype IDs (0) 0 Alien Tech Used (0) 0 Bonus (24) 24 TOTAL SCORE: 2051 Bonus ------- High Alert Combat Kills 24 Cogmind --------- Core Integrity 468/600 Matter 8/300 Energy 140/140 System Corruption 0% Temperature Cool (0) Movement Walking (150) Ox1 Location -9/Mines Parts ------- > --- POWER (1) -------- Light Deuterium Engine > --- PROPULSION (2) --- Improved Aluminum Leg > --- UTILITY (1) ------ Medium Armor Plating > --- WEAPON (2) ------- Heavy Assault Rifle > --- INVENTORY (2) ---- Aluminum Leg Improved Grenade Launcher Peak State ------------ > --- POWER ------------ Light Deuterium Engine > --- PROPULSION ------- Improved Aluminum Leg > --- UTILITY ---------- Trap Extractor > --- WEAPON ----------- Improved Grenade Launcher > --- INVENTORY -------- Aluminum Leg Heavy Assault Rifle [Rating: 10] Favorites ----------- Power Light Deuterium Engine Engine Light Deuterium Engine Propulsion Aluminum Leg Leg Aluminum Leg Utility Medium Armor Plating Device Trap Extractor Protection Medium Armor Plating Weapon Assault Rifle Ballistic Gun Assault Rifle Launcher Improved Grenade Launcher Build | -11 -10 -10 -9 -9 ------- Run | Scr Mat Min Mat Min Slots Evolved 2 | . . . . 2 Power . | . . . . . Propulsion 1 | . . . . 1 Utility . | . . . . . Weapon 1 | . . . . 1 Parts Attached 16 | 3 . 2 11 . Power 2 | 1 . . 1 . Engine 2 | 1 . . 1 . Core . | . . . . . Reactor . | . . . . . Propulsion 3 | 1 . 1 1 . Treads . | . . . . . Leg 3 | 1 . 1 1 . Wheel . | . . . . . Hover . | . . . . . Flight . | . . . . . Utility 3 | . . 1 2 . Device 2 | . . 1 1 . Storage . | . . . . . Processor . | . . . . . Hackware . | . . . . . Protection 1 | . . . 1 . Artifact . | . . . . . Weapon 8 | 1 . . 7 . Energy Gun . | . . . . . Energy Cannon . | . . . . . Ballistic Gun 5 | 1 . . 4 . Ballistic Cannon . | . . . . . Launcher 3 | . . . 3 . Special Weapon . | . . . . . Impact Weapon . | . . . . . Slashing Weapon . | . . . . . Piercing Weapon . | . . . . . Special Melee Weapon . | . . . . . Unidentified Prototypes . | . . . . . Parts Lost . | . . . . . Power . | . . . . . Propulsion . | . . . . . Utility . | . . . . . Weapon . | . . . . . Highest Loss Streak . | . . . . . Average Slot Usage (%) 84 | . 75 92 100 66 Engine 22 | . 25 25 25 16 Leg 22 | . 25 25 25 16 Device 10 | . . 17 20 . Protection 7 | . . . 4 16 Ballistic Gun 20 | . 25 25 21 16 Launcher 1 | . . . 3 . Naked Turns . | . . . . . Heaviest Build 18 | 7 7 8 18 15 Greatest Support 13 | 10 10 10 13 13 Greatest Overweight (x) 1 | . . . 1 1 Average Overweight (x) . | . . . . 1 Largest Inventory Capacity 2 | . . . 2 2 Average Capacity 1 | . . . 1 2 Most Carried 2 | . . . 2 2 Average Carried 1 | . . . 1 2 Final Capacity 2 | . . . 2 2 Final Carried 2 | . . . 2 2 Class Distribution -------------------- 100% | Mutant Dominant Class ---------------- Mutant | -10/Materials Mutant | -10/Mines Mutant | -9/Materials Mutant | -9/Mines Resources | -11 -10 -10 -9 -9 ----------- Run | Scr Mat Min Mat Min Matter Collected 410 | 204 42 . 164 . Remotely . | . . . . . Salvage Created 392 | . 92 . 300 . Parts 51 | . 8 6 37 . Haulers Intercepted 2 | . . . 2 . Recyclers Shooed . | . . . . . Parts Field Recycled . | . . . . . Retrieved Matter . | . . . . . Parts Self-Destructed . | . . . . . Prevented . | . . . . . Kills | -11 -10 -10 -9 -9 ------- Run | Scr Mat Min Mat Min Combat Hostiles Destroyed 19 | . 4 2 13 . Guns 9 | . 4 2 3 . AOE 10 | . . . 10 . Classes Destroyed 8 | . 2 . 6 . Builder 1 | . . . 1 . Hauler 2 | . . . 2 . Operator 1 | . . . 1 . Watcher 2 | . . . 2 . Swarmer 7 | . 3 . 4 . Grunt 10 | . 1 2 7 . Duelist 1 | . . . 1 . Sentry 1 | . . . 1 . Best Kill Streak 9 | . 3 2 9 . Combat Bots Only 5 | . 3 2 5 . Max Kills in Single Turn 3 | . 1 1 3 . Gunslinging . | . . . . . Exploded 2 | . . . 2 . Melee . | . . . . . Uniques/NPCs Destroyed . | . . . . . Combat | -11 -10 -10 -9 -9 -------- Run | Scr Mat Min Mat Min Damage Taken 676 | . 175 185 316 . Core 570 | . 143 159 268 . Absorbed by Shields . | . . . . . Redirected to Core 347 | . 106 88 153 . Core Remaining (%) 96 | 100 . 93 . . Volleys Fired 64 | . 15 11 38 . Largest 1 | . 1 1 1 . Hottest 36 | . 20 20 36 . Shots Fired 64 | . 15 11 38 . Gun 49 | . 15 11 23 . Cannon . | . . . . . Launcher 15 | . . . 15 . Special . | . . . . . Kinetic 49 | . 15 11 23 . Thermal . | . . . . . Explosive 15 | . . . 15 . Electromagnetic . | . . . . . Robot Hit Streak 14 | . 10 8 14 . Robot Miss Streak 2 | . 2 1 2 . Penetration Max . | . . . . . Secondary Targets . | . . . . . Shots Hit Robots 43 | . 12 9 22 . Core Hits 39 | . 5 5 29 . Critical Hits . | . . . . . Critical Kills . | . . . . . Critical Parts Destroyed . | . . . . . Melee Attacks . | . . . . . Impact . | . . . . . Slashing . | . . . . . Piercing . | . . . . . Sneak Attacks . | . . . . . Combat Hostiles . | . . . . . Follow-up Attacks . | . . . . . Damage Inflicted 1962 | . 186 110 1666 . Guns 573 | . 186 110 277 . Cannons . | . . . . . Explosions 1389 | . . . 1389 . Melee . | . . . . . Ramming . | . . . . . Kinetic 573 | . 186 110 277 . Thermal . | . . . . . Explosive 1389 | . . . 1389 . Electromagnetic . | . . . . . Impact . | . . . . . Slashing . | . . . . . Piercing . | . . . . . Highest Corruption . | . . . . . Average Corruption . | . . . . . Corruption Purged . | . . . . . Overload Shots . | . . . . . Overflow Damage 118 | . . . 118 . Projectiles . | . . . . . Explosions 118 | . . . 118 . Melee . | . . . . . Knockbacks . | . . . . . Impact . | . . . . . Kinetic . | . . . . . Secondary . | . . . . . Self-Inflicted Damage . | . . . . . Shots . | . . . . . Rammed . | . . . . . Targets Rammed . | . . . . . Kicked . | . . . . . Crushed . | . . . . . Highest Temperature 38 | . . 10 38 . Average Temperature 17 | . . 7 18 . Received Heat Transfer 246 | . 24 108 114 . Siege Activations . | . . . . . Robots Corrupted . | . . . . . Combat Hostiles . | . . . . . Parts Fried . | . . . . . Impact Corruptions . | . . . . . Robots Melted . | . . . . . Combat Hostiles . | . . . . . Parts Melted . | . . . . . Heat Transferred . | . . . . . Parts Sabotaged . | . . . . . Parts Stolen . | . . . . . Parts Stripped . | . . . . . Power Chain Reactions . | . . . . . Missiles Intercepted . | . . . . . Alert | -11 -10 -10 -9 -9 ------- Run | Scr Mat Min Mat Min Peak Influence 462 | . 100 89 462 180 Average Influence 130 | . 25 83 158 180 Maximum Alert Level 2 | . . . 2 . Low Security (%) 85 | 100 100 100 59 100 Level 1 11 | . . . 31 . Level 2 3 | . . . 8 . Level 3 . | . . . . . Level 4 . | . . . . . Level 5 . | . . . . . High Security . | . . . . . Max Security . | . . . . . Squads Dispatched 3 | . 1 . 2 . Investigation . | . . . . . Extermination . | . . . . . Reinforcement 3 | . 1 . 2 . Assault . | . . . . . Garrison . | . . . . . Intercept . | . . . . . Construction Impeded 1 | . . . 1 . Haulers Reinforced . | . . . . . Stealth | -11 -10 -10 -9 -9 --------- Run | Scr Mat Min Mat Min Distress Signals 3 | . . . 1 2 Communications Jammed . | . . . . . Distress Signals . | . . . . . Times Spotted 28 | . 5 2 21 . Peak Tracking Total 7 | . 3 2 7 . Tactical Retreats . | . . . . . Traps | -11 -10 -10 -9 -9 ------- Run | Scr Mat Min Mat Min Traps Triggered 1 | . 1 . . . Indirectly . | . . . . . Trap Hack Attempts . | . . . . . Triggered . | . . . . . Disarmed . | . . . . . Reprogrammed . | . . . . . Reused . | . . . . . Traps Extracted . | . . . . . Installed . | . . . . . Triggered . | . . . . . Machines | -11 -10 -10 -9 -9 ---------- Run | Scr Mat Min Mat Min Machines Disabled 3 | . . . 3 . Max in Single Turn 1 | . . . 1 . Machines Sabotaged . | . . . . . Garrisons Compromised . | . . . . . Overloaded Fab Kills . | . . . . . Fab Network Shutdowns . | . . . . . Hacking | -11 -10 -10 -9 -9 --------- Run | Scr Mat Min Mat Min Machines Accessed 3 | . . . 3 . Terminals 3 | . . . 3 . Fabricators . | . . . . . Repair Stations . | . . . . . Recycling Units . | . . . . . Scanalyzers . | . . . . . Garrison Access . | . . . . . Total Hacks 5 | . . . 5 . Successful 4 | . . . 4 . Failed 1 | . . . 1 . Catastrophic . | . . . . . Database Lockouts . | . . . . . Manual . | . . . . . Terminals 5 | . . . 5 . Fabricators . | . . . . . Repair Stations . | . . . . . Recycling Units . | . . . . . Scanalyzers . | . . . . . Garrison Access . | . . . . . Terminal Hacks 4 | . . . 4 . Record 4 | . . . 4 . Fabricator Hacks . | . . . . . Repair Station Hacks . | . . . . . Recycling Unit Hacks . | . . . . . Scanalyzer . | . . . . . Garrison Access Hacks . | . . . . . Unauthorized Hacks . | . . . . . Terminals . | . . . . . Fabricators . | . . . . . Repair Stations . | . . . . . Recycling Units . | . . . . . Scanalyzers . | . . . . . Garrison Access . | . . . . . Data Cores Recovered . | . . . . . Used . | . . . . . Hacking Detections . | . . . . . Full Trace Events . | . . . . . Feedback Events . | . . . . . Feedback Blocked . | . . . . . Robot Schematics Acquired . | . . . . . Robots Built . | . . . . . Matter . | . . . . . Time . | . . . . . Total Robot Build Rating . | . . . . . Part Schematics Acquired . | . . . . . Parts Built . | . . . . . Matter . | . . . . . Time . | . . . . . Total Part Build Rating . | . . . . . Parts Repaired . | . . . . . Time . | . . . . . Parts Recycled . | . . . . . Recycled Matter . | . . . . . Retrieved Matter . | . . . . . Retrieved Components . | . . . . . Parts Scanalyzed . | . . . . . Part Schematics Acquired . | . . . . . Parts Damaged . | . . . . . Bothacking | -11 -10 -10 -9 -9 ------------ Run | Scr Mat Min Mat Min Used RIF Installer . | . . . . . Robots Hacked . | . . . . . Non-combat . | . . . . . Combat . | . . . . . Robot Hacks Applied . | . . . . . Relay Couplers Released . | . . . . . Robots Rewired . | . . . . . Allies Hacked . | . . . . . Hacks Repelled . | . . . . . Allies | -11 -10 -10 -9 -9 -------- Run | Scr Mat Min Mat Min Total Allies . | . . . . . Largest Group . | . . . . . Highest-Rated Group . | . . . . . Highest-Rated Ally . | . . . . . Total Orders . | . . . . . Ally Attacks . | . . . . . Total Damage . | . . . . . Kills . | . . . . . Allies Corrupted . | . . . . . Allies Melted . | . . . . . Intel | -11 -10 -10 -9 -9 ------- Run | Scr Mat Min Mat Min Robot Analysis Total . | . . . . . Derelict Logs Recovered 1 | . . 1 . . Drone Launches . | . . . . . Drone Recoveries . | . . . . . Exploration | -11 -10 -10 -9 -9 ------------- Run | Scr Mat Min Mat Min Turns Passed 1067 | 48 148 137 393 341 Spaces Moved 425 | 39 91 85 206 4 Core 3 | 3 . . . . Treads . | . . . . . Legs 422 | 36 91 85 206 4 Wheels . | . . . . . Hover . | . . . . . Flight . | . . . . . Fastest Speed 50 | 50 120 120 120 150 Average Speed 122 | 114 120 120 125 150 Slowest Speed 150 | 120 120 120 150 150 Overloaded Moves . | . . . . . Propulsion Burnouts . | . . . . . Robots Hopped . | . . . . . Cave-ins Triggered . | . . . . . Exploration Rate (%) 15 | 4 21 18 26 6 Regions Visited 4 Branch Regions 2 Pre-discovered Areas . | . . . . . Known Exits Taken 1 | . . 1 . . Unknown Exits Taken 3 | 1 1 . 1 . Scrap Searched . | . . . . . Spaces Dug . | . . . . . Terrain Destroyed 99 | . . . 99 . Melee . | . . . . . Projectile . | . . . . . AOE 99 | . . . 99 . Actions | -11 -10 -10 -9 -9 --------- Run | Scr Mat Min Mat Min Total 904 | 41 115 109 300 339 Wait 372 | . 8 . 29 335 Move 421 | 38 90 84 205 4 Hop . | . . . . . Pick Up 4 | . . . 4 . Fast Attach 5 | 3 . 1 1 . Attach . | . . . . . Detach . | . . . . . Swap 11 | . . 1 10 . Drop 6 | . . 1 5 . Fire 64 | . 15 11 38 . Melee . | . . . . . Ram . | . . . . . Kick . | . . . . . Crush . | . . . . . Escape Stasis . | . . . . . Rewire . | . . . . . Trap . | . . . . . Miscellaneous 21 | . 2 11 8 . Route ------- -11/Scrapyard -10/Materials -10/Mines -9/Materials -9/Mines History --------- Turn | Location | Event 6 | -11/Scrapyard | Discovered new exit (range 16) 49 | -11/Scrapyard | Entered Materials 114 | -10/Materials | Discovered new exit (range 16) 197 | -10/Materials | Entered Mines 307 | -10/Mines | Identified exit to Materials 317 | -10/Mines | Build established: Mutant 334 | -10/Mines | Entered Materials 336 | -9/Materials | Reached level 2 528 | -9/Materials | Reached level 3 685 | -9/Materials | Discovered new exit (range 15) 696 | -9/Materials | Reached level 4 727 | -9/Materials | Entered Mines 727 | -9/Mines | Upgraded with Propulsion slot (x1) 727 | -9/Mines | Upgraded with Weapon slot (x1) 733 | -9/Mines | Excavation squad dispatched 733 | -9/Mines | A large section of the Mines collapsed 983 | -9/Mines | Excavation squad dispatched 1068 | -9/Mines | Self-destructed Last Messages --------------- 00715_ Acquired 15 matter. 00716_ K-01 Serf cleans the Terminal. LOCATION=UNKNOWN GOAL=ESCAPE Something is scanning the area. 00727_ Upgraded: Propulsion Slot (+1) 00727_ Upgraded: Weapon Slot (+1) 00727_ Upgraded: Ranged Accuracy (+5) 00727_ Upgraded: KI Damage % (+5) 00728_ K-01 Serf collects debris. 00732_ K-01 Serf cleans the Plasma Injector. 00733_ K-01 Serf crushed by falling debris. 00733_ K-01 Serf destroyed. 00733_ K-01 Serf crushed by falling debris. 00733_ K-01 Serf system corrupted by crushing effect. 00733_ K-01 Serf destroyed. 00733_ ALERT: Suspicious cave-in, suspected derelict activity in mines. Dispatching escorted excavation squad. 00983_ ALERT: Derelict activity in mines confirmed. Dispatching additional escorted excavation squad. Map ----- +----------------------------------------------------+ | | | | | | | | | | | | | | | | | | | | | | | | | | | | | | | | | | | | | ?????????????????????????????????????????????????? | | ????????????????############?????????????????????? | | ????????????????# #?????????????????????? | | ????????????????# #?????????????????????? | | ????????????????# #?????????????????????? | | ????????????????# """ "## ########??????????????? | | ????????????????# """ "#"## #??????????? | | ????????????????# """ ""#@#########??????????????? | | ????????????????# ####?????????????????????? | | ????????????????####### ####?????????????????????? | | ??????????????????????# #????????????????????????? | | ?????????????????????? #????????????????????????? | | ????????????????????? ?????????????????????????? | | ???????????????????? ?????????????????????????? | | ??????????????????? ??????????????????????????? | | ??????????????????# ???????????????????????????? | | ??????????????????#?##???????????????????????????? | | ?????????????????????????????????????????????????? | | ?????????????????????????????????????????????????? | | ?????????????????????????????????????????????????? | | ?????????????????????????????????????????????????? | | ?????????????????????????????????????????????????? | | ?????????????????????????????????????????????????? | | ?????????????????????????????????????????????????? | | ?????????????????????????????????????????????????? | | ?????????????????????????????????????????????????? | | ?????????????????????????????????????????????????? | | ?????????????????????????????????????????????????? | | ?????????????????????????????????????????????????? | | ?????????????????????????????????????????????????? | | ?????????????????????????????????????????????????? | | ?????????????????????????????????????????????????? | +----------------------------------------------------+ Best States ------------- Heat Dissipation 35 Energy Generation 14 Energy Capacity 250 Matter Stores 300 Matter Capacity 300 Sight Range 16 Terrain Scan Density 10 Armor Coverage 225 Evasion (%) 40 Item Schematics ----------------- None Robot Schematics ------------------ None Fabricated ------------ Nothing Alien Tech Used ----------------- None Achievements -------------- None Challenges ------------ None RPGLIKE | -11 -10 -10 -9 -9 --------- Run | Scr Mat Min Mat Min Levels Raised 3 | . . . 3 . XP Earned 8127 | 3000 500 750 3377 500 XP Spent 7150 | 3000 . . 1450 2700 Upgrades 13 | 5 . . 4 4 Propulsion Slot 1 | . . . . 1 Weapon Slot 1 | . . . . 1 Inventory Capacity 2 | . . . 2 . Ranged Accuracy 6 | 5 . . . 1 KI Damage % 3 | . . . 2 1 Protomatter Created 226 | . 11 77 138 . Integrity Restored 438 | . 33 231 174 . Core 438 | . 33 231 174 . Protomatter Decayed 18 | . . . . 18 Game ------ Seed ArcBarrageRay Manual? 0 Play Time 00:14:07 Cumulative 6.4 hours Start 2019.12.21 @ 21:56:03 End 2019.12.21 @ 22:08:43 Sessions 1 Manual Loads 0 Difficulty Rogue Special Mode Winter2019/RPGLIKE Game No. 14 Rogue 14 Adventurer 0 Explorer 0 Win Type - Total 0 Types 0/0/0/0/0/0/0 Lore% 5 Gallery% 11 Achievement% 11 Wizard Run 0 Options --------- ASCII 0 Keyboard 0 Movement Mouse Keybinds 0 Fullscreen 2 Font 18/SmallcapsGlow Map View 76x50 Tactical HUD 1 Map Filters NONE Filters NONE Steam 1 RUN: 58491f83-503a-4881-9ea1-40ce415e884e